Workbook

Sheet Fox Ridge Apartments
A2: Rent Roll - Updated
A3: Fox Ridge Apartments
A4: Mar 2026
A6: Unit Details
A7: Bldg-Unit | B7: Unit Type | C7: SQFT | D7: Unit Status | E7: Move-In | F7: Lease Start | G7: Market Rent | H7: Ledger | I7: Charge Code | J7: Actual Charges | K7: Deposit Held
A8: F201-101 | B8: 1 Bed/1 Bath | C8: 700 | D8: Occupied No Notice | E8: 2021-04-01 | F8: 2025-06-01 | G8: 899 | H8: Resident | I8: Rent Tenant | J8: 879 | K8: 425
I9: Water and Sewer Income | J9: 29
H10: Charge Total: | J10: =SUM(J8:J9) -> 908
A11: F201-102 | B11: 1 Bed/1 Bath | C11: 700 | D11: Occupied No Notice | E11: 2021-04-01 | F11: 2025-06-01 | G11: 899 | H11: Resident | I11: Rent Tenant | J11: 829 | K11: 495
I12: Water and Sewer Income | J12: 29
H13: Charge Total: | J13: =SUM(J11:J12) -> 858
A14: F201-103 | B14: 1 Bed/1 Bath | C14: 700 | D14: Occupied No Notice | E14: 2024-03-01 | F14: 2025-06-01 | G14: 899 | H14: Resident | I14: Rent Tenant | J14: 819 | K14: 799
I15: Water and Sewer Income | J15: 29
H16: Charge Total: | J16: =SUM(J14:J15) -> 848
A17: F201-104 | B17: 1 Bed/1 Bath | C17: 700 | D17: Occupied No Notice | E17: 2022-08-01 | F17: 2025-06-01 | G17: 899 | H17: Resident | I17: Rent Tenant | J17: 879 | K17: 699
I18: Water and Sewer Income | J18: 29
H19: Charge Total: | J19: =SUM(J17:J18) -> 908
A20: F201-105 | B20: 2 Bed/1 Bath | C20: 850 | D20: Occupied No Notice | E20: 2021-04-01 | F20: 2025-06-01 | G20: 969 | H20: Resident | I20: Rent Tenant | J20: 949 | K20: 535
I21: Water and Sewer Income | J21: 39
H22: Charge Total: | J22: =SUM(J20:J21) -> 988
A23: F201-106 | B23: 2 Bed/1 Bath | C23: 850 | D23: Occupied No Notice | E23: 2021-04-01 | F23: 2025-06-01 | G23: 969 | H23: Resident | I23: Rent Tenant | J23: 949 | K23: 525
I24: Water and Sewer Income | J24: 39
H25: Charge Total: | J25: =SUM(J23:J24) -> 988
A26: F201-201 | B26: 2 Bed/1 Bath | C26: 850 | D26: Occupied No Notice | E26: 2020-08-01 | F26: 2025-06-01 | G26: 969 | H26: Resident | I26: Rent Tenant | J26: 889 | K26: 910
I27: Pet Rent | J27: 25
I28: Water and Sewer Income | J28: 39
H29: Charge Total: | J29: =SUM(J26:J28) -> 953
A30: F201-202 | B30: 1 Bed/1 Bath | C30: 700 | D30: Occupied No Notice | E30: 2021-04-01 | F30: 2025-06-01 | G30: 899 | H30: Resident | I30: Rent Tenant | J30: 799 | K30: 450
I31: Water and Sewer Income | J31: 29
H32: Charge Total: | J32: =SUM(J30:J31) -> 828
A33: F201-203 | B33: 1 Bed/1 Bath | C33: 700 | D33: Vacant Unrented Ready | G33: 899 | H33: - | I33: - | J33: 0 | K33: 0
H34: Charge Total: | J34: =SUM(J33:J33) -> 0
A35: F201-204 | B35: 1 Bed/1 Bath | C35: 700 | D35: Occupied No Notice | E35: 2025-01-01 | F35: 2026-01-01 | G35: 899 | H35: Resident | I35: Rent Tenant | J35: 879 | K35: 829
I36: Water and Sewer Income | J36: 29
H37: Charge Total: | J37: =SUM(J35:J36) -> 908
A38: F201-205 | B38: 2 Bed/1 Bath | C38: 850 | D38: Occupied No Notice | E38: 2021-04-01 | F38: 2025-06-01 | G38: 969 | H38: Resident | I38: Rent Tenant | J38: 659 | K38: 450
I39: Water and Sewer Income | J39: 39
H40: Charge Total: | J40: =SUM(J38:J39) -> 698
A41: F201-206 | B41: 2 Bed/1 Bath | C41: 850 | D41: Vacant Unrented Ready | G41: 969 | H41: - | I41: - | J41: 0 | K41: 0
H42: Charge Total: | J42: =SUM(J41:J41) -> 0
A43: F207-101 | B43: 1 Bed/1 Bath | C43: 700 | D43: Occupied No Notice | E43: 2021-09-01 | F43: 2025-06-01 | G43: 899 | H43: Resident | I43: Rent Tenant | J43: 879 | K43: 949
I44: Pet Rent | J44: 25
I45: Water and Sewer Income | J45: 29
H46: Charge Total: | J46: =SUM(J43:J45) -> 933
A47: F207-102 | B47: 1 Bed/1 Bath | C47: 700 | D47: Occupied No Notice | E47: 2025-02-01 | F47: 2026-02-01 | G47: 899 | H47: Resident | I47: Rent Tenant | J47: 879 | K47: 829
I48: Water and Sewer Income | J48: 29
H49: Charge Total: | J49: =SUM(J47:J48) -> 908
A50: F207-103 | B50: 1 Bed/1 Bath | C50: 700 | D50: Occupied No Notice | E50: 2021-04-01 | F50: 2025-06-01 | G50: 899 | H50: Resident | I50: Rent Tenant | J50: 879 | K50: 450
I51: Water and Sewer Income | J51: 29
H52: Charge Total: | J52: =SUM(J50:J51) -> 908
A53: F207-104 | B53: 1 Bed/1 Bath | C53: 700 | D53: Occupied No Notice | E53: 2022-05-01 | F53: 2025-06-01 | G53: 899 | H53: Resident | I53: Rent Tenant | J53: 879 | K53: 1398
I54: Water and Sewer Income | J54: 29
H55: Charge Total: | J55: =SUM(J53:J54) -> 908
A56: F207-105 | B56: 2 Bed/1 Bath | C56: 850 | D56: Occupied No Notice | E56: 2024-02-01 | F56: 2025-06-01 | G56: 969 | H56: Resident | I56: Rent Tenant | J56: 869 | K56: 849
I57: Water and Sewer Income | J57: 39
H58: Charge Total: | J58: =SUM(J56:J57) -> 908
A59: F207-106 | B59: 2 Bed/1 Bath | C59: 850 | D59: Occupied No Notice | E59: 2021-04-01 | F59: 2025-06-01 | G59: 969 | H59: Resident | I59: Rent Tenant | J59: 849 | K59: 550
I60: Water and Sewer Income | J60: 39
H61: Charge Total: | J61: =SUM(J59:J60) -> 888
A62: F207-201 | B62: 1 Bed/1 Bath | C62: 700 | D62: Occupied No Notice | E62: 2021-04-01 | F62: 2025-06-01 | G62: 899 | H62: Resident | I62: Rent Tenant | J62: 819 | K62: 495
I63: Water and Sewer Income | J63: 29
H64: Charge Total: | J64: =SUM(J62:J63) -> 848
A65: F207-202 | B65: 1 Bed/1 Bath | C65: 700 | D65: Occupied No Notice | E65: 2020-06-01 | F65: 2025-06-01 | G65: 899 | H65: Resident | I65: Rent Tenant | J65: 799 | K65: 505
I66: Water and Sewer Income | J66: 29
H67: Charge Total: | J67: =SUM(J65:J66) -> 828
A68: F207-203 | B68: 1 Bed/1 Bath | C68: 700 | D68: Occupied No Notice | E68: 2025-07-18 | F68: 2025-08-01 | G68: 899 | H68: Resident | I68: Rent Tenant | J68: 879 | K68: 879
I69: Water and Sewer Income | J69: 29
H70: Charge Total: | J70: =SUM(J68:J69) -> 908
A71: F207-204 | B71: 1 Bed/1 Bath | C71: 700 | D71: Occupied No Notice | E71: 2025-02-01 | F71: 2026-02-01 | G71: 899 | H71: Resident | I71: Rent Tenant | J71: 879 | K71: 1658
I72: Pet Rent | J72: 25
I73: Water and Sewer Income | J73: 29
H74: Charge Total: | J74: =SUM(J71:J73) -> 933
A75: F207-205 | B75: 2 Bed/1 Bath | C75: 850 | D75: Occupied No Notice | E75: 2025-02-01 | F75: 2026-02-01 | G75: 969 | H75: Resident | I75: Rent Tenant | J75: 949 | K75: 899
I76: Water and Sewer Income | J76: 29
H77: Charge Total: | J77: =SUM(J75:J76) -> 978
A78: F207-208 | B78: 2 Bed/1 Bath | C78: 850 | D78: Occupied No Notice | E78: 2021-04-01 | F78: 2025-06-01 | G78: 969 | H78: Resident | I78: Rent Tenant | J78: 859 | K78: 595
I79: Water and Sewer Income | J79: 39
H80: Charge Total: | J80: =SUM(J78:J79) -> 898
B81: Fox Ridge Apartments Total: | C81: =SUM(C8:C9)+SUM(C11:C12)+SUM(C14:C15)+SUM(C17:C18)+SUM(C20:C21)+SUM(C23:C24)+SUM(C26:C28)+SUM(C30:C31)+SUM(C33:C33)+SUM(C35:C36)+SUM(C38:C39)+SUM(C41:C41)+SUM(C43:C45)+SUM(C47:C48)+SUM(C50:C51)+SUM(C53:C54)+SUM(C56:C57)+SUM(C59:C60)+SUM(C62:C63)+SUM(C65:C66)+SUM(C68:C69)+SUM(C71:C73)+SUM(C75:C76)+SUM(C78:C79) -> 18150 | G81: =SUM(G8:G9)+SUM(G11:G12)+SUM(G14:G15)+SUM(G17:G18)+SUM(G20:G21)+SUM(G23:G24)+SUM(G26:G28)+SUM(G30:G31)+SUM(G33:G33)+SUM(G35:G36)+SUM(G38:G39)+SUM(G41:G41)+SUM(G43:G45)+SUM(G47:G48)+SUM(G50:G51)+SUM(G53:G54)+SUM(G56:G57)+SUM(G59:G60)+SUM(G62:G63)+SUM(G65:G66)+SUM(G68:G69)+SUM(G71:G73)+SUM(G75:G76)+SUM(G78:G79) -> 22206 | J81: =SUM(J8:J9)+SUM(J11:J12)+SUM(J14:J15)+SUM(J17:J18)+SUM(J20:J21)+SUM(J23:J24)+SUM(J26:J28)+SUM(J30:J31)+SUM(J33:J33)+SUM(J35:J36)+SUM(J38:J39)+SUM(J41:J41)+SUM(J43:J45)+SUM(J47:J48)+SUM(J50:J51)+SUM(J53:J54)+SUM(J56:J57)+SUM(J59:J60)+SUM(J62:J63)+SUM(J65:J66)+SUM(J68:J69)+SUM(J71:J73)+SUM(J75:J76)+SUM(J78:J79) -> 19731 | K81: =SUM(K8:K9)+SUM(K11:K12)+SUM(K14:K15)+SUM(K17:K18)+SUM(K20:K21)+SUM(K23:K24)+SUM(K26:K28)+SUM(K30:K31)+SUM(K33:K33)+SUM(K35:K36)+SUM(K38:K39)+SUM(K41:K41)+SUM(K43:K45)+SUM(K47:K48)+SUM(K50:K51)+SUM(K53:K54)+SUM(K56:K57)+SUM(K59:K60)+SUM(K62:K63)+SUM(K65:K66)+SUM(K68:K69)+SUM(K71:K73)+SUM(K75:K76)+SUM(K78:K79) -> 16173
A83: Status Summary | D83: Charge Code Summary
A84: Description | B84: Unit Count | C84: Percent | D84: Charge Code | E84: Charge Code Type | F84: Scheduled | M84: Status Summary: Scheduled Rent | N84: Status Summary: Scheduled Other | O84: Status Summary: 0 | P84: Status Summary: 1 | Q84: Status Summary: 2 | R84: Status Summary: 9 | S84: Status Summary: 12 | T84: Status Summary: 13 | U84: Status Summary: 21 | V84: Status Summary: 22 | W84: Status Summary: 23
A85: Occupied No Notice | B85: 22 | C85: 0.9166666667 | D85: Ledger: Resident | M85: 18948 | N85: 783 | O85: 101108 | P85: Fox Ridge Apartments | R85: 22 | S85: 0.9166666667 | T85: 20338 | U85: 18948 | V85: 783 | W85: 19731
A86: Total Occupied Units | B86: =SUM(B85:B85) -> 22 | C86: 0.9166666667 | D86: Pet Rent | E86: Other Income | F86: 75 | M86: =SUM(M85:M85) -> 18948 | N86: =SUM(N85:N85) -> 783
A87: Vacant Unrented Ready | B87: 2 | C87: 0.08333333333 | D87: Rent Tenant | E87: Rent | F87: 18948 | M87: 0 | N87: 0 | O87: 101108 | P87: Fox Ridge Apartments | R87: 22 | S87: 0.08333333333 | T87: 1868 | U87: 0 | V87: 0 | W87: 0
A88: Total Vacant Units | B88: =SUM(B87:B87) -> 2 | C88: 0.08333333333 | D88: Water and Sewer Income | E88: Other Income | F88: 708 | M88: =SUM(M87:M87) -> 0 | N88: =SUM(N87:N87) -> 0
A89: Total Rentable Units | B89: =SUM(B85:B85)+SUM(B87:B87) -> 24 | C89: 1 | D89: Resident Total: | F89: =SUM(F86:F88) -> 19731 | M89: =SUM(M85:M85)+SUM(M87:M87) -> 18948 | N89: =SUM(N85:N85)+SUM(N87:N87) -> 783
D90: Total: | F90: =SUM(F86:F88) -> 19731
A92: Future Resident Details
A93: Bldg-Unit | B93: Unit Type | C93: SQFT | D93: Unit Status | E93: Move-In | F93: Lease Start | G93: Ledger | H93: Charge Code | I93: Actual Charges | J93: Scheduled Charges
A94: Selected report filters returned no data
